bitfinex-derivatives/quotes_BNBF0:USTF0_20250904
["timestamp","ask_amount","ask_price","bid_price","bid_amount"]
[1757025116823,0.20512397,848.41,847.67,1.0578004]
[1757025117422,0.20512397,848.41,847.84,1.0578004]
[1757025118025,0.20512397,848.41,847.85,1.0578004]
[1757025118419,0.20512397,848.41,847.84,1.0578004]
[1757025120325,0.20512397,848.41,847.85,1.0578004]
[1757025121525,0.20512397,848.41,847.84,1.0578004]
[1757025123525,0.20512397,848.41,847.83,1.0578004]
[1757025124027,0.20512397,848.41,847.81,1.0578004]
[1757025124431,0.71954492,848.52,847.81,1.0578004]
[1757025124730,0.20510584,848.53,847.81,1.0578004]
[1757025125427,0.20510584,848.53,847.82,1.0578004]
[1757025127629,0.20510584,848.53,847.86,1.0578004]
[1757025127831,0.20510584,848.53,847.84,1.0578004]
[1757025130635,0.20510584,848.53,847.83,1.0578004]
[1757025131636,0.20510584,848.53,847.84,1.0578004]
[1757025132132,0.20510584,848.53,847.83,1.0578004]
[1757025132334,0.20510584,848.53,847.85,1.0578004]
[1757025135034,0.20510584,848.53,847.83,1.0578004]
[1757025136536,0.20510584,848.53,847.84,1.0578004]
[1757025137132,0.20510584,848.53,847.03,0.20515662]
[1757025137133,0.20510584,848.53,847.83,1.0578004]
[1757025137332,0.20510584,848.53,847.81,1.0578004]
[1757025137536,0.20510584,848.53,847.82,1.0578004]
[1757025139640,0.20510584,848.53,847.8,1.0578004]
[1757025145040,0.20510584,848.53,847.82,1.0578004]
[1757025147141,0.20510584,848.53,847.84,1.0578004]
[1757025147342,0.20510584,848.53,847.85,1.0578004]
[1757025148737,0.20510584,848.53,847.79,1.0578004]
[1757025149438,0.20510584,848.53,847.8,1.0578004]
[1757025150843,0.20510584,848.53,847.79,1.0578004]
[1757025155444,0.20510584,848.53,847.8,1.0578004]
[1757025158542,0.20510584,848.53,847.86,1.0578004]
[1757025160249,0.20510584,848.53,847.87,1.0578004]
[1757025160549,0.20510584,848.53,847.9,1.0578004]
[1757025162249,0.20510584,848.53,847.91,1.0578004]
[1757025163450,0.20510584,848.53,847.92,1.0578004]
[1757025165348,0.20510584,848.53,847.93,1.0578004]
[1757025167250,0.20510584,848.53,847.94,1.0578004]
[1757025167454,0.20510584,848.53,847.95,1.0578004]
[1757025168153,0.20510584,848.53,847.82,1.0578004]
[1757025168958,0.9243539,848.53,847.82,1.0578004]
[1757025169149,0.20510584,848.53,847.82,1.0578004]
[1757025173153,0.20510584,848.53,847.83,1.0578004]
[1757025173556,0.20510584,848.53,847.71,1.0578004]
[1757025174560,0.20510584,848.53,847.72,1.0578004]
[1757025178059,0.20510584,848.53,847.75,1.0578004]
[1757025180761,0.20510584,848.53,847.69,1.0578004]
[1757025180965,0.20510584,848.53,847.65,1.0578004]
[1757025181166,0.20510584,848.53,847.62,1.0578004]
[1757025182468,0.92517372,848.53,847.62,1.0578004]
[1757025182669,0.72006788,848.52,847.62,1.0578004]
[1757025183165,0.20510584,848.53,847.61,1.0578004]
[1757025183369,0.20510584,848.53,847.64,1.0578004]
[1757025185266,0.20510584,848.53,847.63,1.0578004]
[1757025186068,0.92517372,848.53,847.63,1.0578004]
[1757025186267,0.72006788,848.52,847.63,1.0578004]
[1757025186466,0.20510584,848.53,847.63,1.0578004]
[1757025189171,0.20510584,848.53,847.62,1.0578004]
[1757025190671,0.92517372,848.53,847.66,1.0578004]
[1757025190974,0.72006788,848.52,847.73,1.0578004]
[1757025191175,0.20510584,848.53,847.73,1.0578004]
[1757025193276,0.20510584,848.53,847.72,1.0578004]
[1757025193675,0.79487548,848.52,847.78,1.0578004]
[1757025193875,0.72006788,848.51,847.78,1.0578004]
[1757025194878,0.72006788,848.52,847.78,1.0578004]
[1757025195174,1.51494336,848.52,847.79,1.0578004]
[1757025195374,0.72006788,848.51,847.79,1.0578004]
[1757025195679,0.72006788,848.52,847.77,1.0578004]
[1757025195879,0.20510584,848.53,847.77,1.0578004]
[1757025197581,0.20510584,848.53,847.76,1.0578004]
[1757025197781,0.20510584,848.53,847.77,1.0578004]
[1757025200381,0.99998132,848.53,847.79,1.0578004]
[1757025200683,0.72006788,848.52,847.79,1.0578004]
[1757025202485,0.72006788,848.52,847.8,1.0578004]
[1757025203781,0.92517372,848.53,847.8,1.0578004]
[1757025205383,1.7200492,848.53,847.81,1.0578004]
[1757025205587,0.72006788,848.52,847.81,1.0578004]
[1757025207188,1.51494336,848.52,847.81,1.0578004]
[1757025207388,0.72006788,848.51,847.81,1.0578004]
[1757025207789,1.51494336,848.51,847.83,1.0578004]
[1757025208089,0.72006788,848.5,847.83,1.0578004]
[1757025209989,0.71900986,848.5,847.83,1.0578004]
[1757025210889,0.71900986,848.5,847.82,1.0578004]
[1757025212490,0.71900986,848.5,847.72,1.0578004]
[1757025212689,0.71900986,848.52,847.72,1.0578004]
[1757025212888,0.20510584,848.53,847.72,1.0578004]
[1757025213993,0.9241157,848.53,847.72,1.0578004]
[1757025214189,0.71900986,848.52,847.72,1.0578004]
[1757025214490,0.20510584,848.53,847.72,1.0578004]
[1757025221197,0.92420826,848.53,847.72,1.0578004]
[1757025221494,0.71910242,848.52,847.72,1.0578004]
[1757025221798,0.20510584,848.53,847.72,1.0578004]
[1757025222299,0.99998132,848.53,847.79,1.0578004]
[1757025222598,0.71910242,848.52,847.79,1.0578004]
[1757025224801,1.5139779,848.52,847.8,1.0578004]
[1757025225000,0.71910242,848.51,847.8,1.0578004]
[1757025226401,0.71910242,848.51,847.81,1.0578004]
[1757025227201,0.71910242,848.51,847.65,1.5867006]
[1757025227202,0.71910242,848.51,847.8,1.0578004]
[1757025227400,1.5139779,848.51,847.81,1.0578004]
[1757025227600,0.71910242,848.5,847.81,1.0578004]
[1757025228600,0.71910242,848.5,847.82,1.0578004]
[1757025229401,1.5139779,848.5,847.82,1.0578004]
[1757025229601,0.71910242,848.49,847.82,1.0578004]
[1757025229998,0.71910242,848.49,847.81,1.0578004]
[1757025230202,1.5139779,848.5,847.82,1.0578004]
[1757025230402,0.71910242,848.49,847.82,1.0578004]
[1757025231398,1.5139779,848.49,847.83,1.0578004]
[1757025231702,0.71910242,848.48,847.83,1.0578004]
[1757025232602,0.79487548,848.47,847.85,1.0578004]
[1757025232802,0.71910242,848.46,847.85,1.0578004]
[1757025233500,1.5139779,848.46,847.86,1.0578004]
[1757025233704,0.71910242,848.45,847.86,1.0578004]
[1757025234405,0.71910242,848.45,847.87,1.0578004]
[1757025234908,0.71910242,848.45,847.85,1.0578004]
[1757025235406,0.71910242,848.47,847.84,1.0578004]
[1757025237102,1.5139779,848.47,847.85,1.0578004]
[1757025237306,0.71910242,848.46,847.85,1.0578004]
[1757025238305,0.71910242,848.46,847.86,1.0578004]
[1757025238505,0.72000153,848.46,847.86,1.0578004]
[1757025239902,1.51487701,848.46,847.86,1.0578004]
[1757025240104,0.72000153,848.45,847.86,1.0578004]
[1757025242105,0.72000153,848.45,847.87,1.0578004]
[1757025245012,0.79487548,848.44,847.89,1.0578004]
[1757025245312,0.72000153,848.43,847.89,1.0578004]
[1757025246815,0.72001294,848.43,847.89,1.0578004]
[1757025250517,1.51488842,848.43,847.83,1.0578004]
[1757025250717,0.72001294,848.42,847.83,1.0578004]
[1757025250918,0.72001294,848.42,847.8,1.0578004]
[1757025251115,1.51488842,848.45,847.79,1.0578004]
[1757025251414,0.79487548,848.39,847.76,1.0578004]
[1757025251616,1.51488842,848.38,847.64,1.0578004]
[1757025251815,0.72001294,848.37,847.64,1.0578004]
[1757025252020,0.72001294,848.36,847.61,1.0578004]
[1757025252217,0.72001294,848.37,847.59,1.0578004]
[1757025252420,0.72001294,848.39,847.59,1.0578004]
[1757025253119,0.72001294,848.39,847.57,1.0578004]
[1757025253315,0.72001294,848.4,847.57,1.0578004]
[1757025254021,0.72001294,848.41,847.57,1.0578004]
[1757025254218,0.72001294,848.41,847.56,1.0578004]
[1757025254823,1.51488842,848.41,847.54,1.0578004]
[1757025255024,0.79487548,848.33,847.64,1.0578004]
[1757025255221,0.79487548,848.37,847.6,1.0578004]
[1757025255426,0.79487548,848.35,847.58,1.0578004]
[1757025255925,0.71939691,848.34,847.58,1.0578004]
[1757025256225,0.7193858,848.34,847.58,1.0578004]
[1757025256425,0.7193858,848.36,847.58,1.0578004]
[1757025257221,0.7193858,848.36,847.57,1.0578004]
[1757025257420,0.7193858,848.37,847.57,1.0578004]
[1757025259323,0.7193858,848.37,847.56,1.0578004]
[1757025259524,0.7193858,848.38,847.56,1.0578004]
[1757025260523,0.7193858,848.39,847.56,1.0578004]
[1757025260825,0.7193858,848.39,847.55,1.0578004]
[1757025262024,0.7193858,848.39,847.56,1.0578004]
[1757025262228,0.7193858,848.39,847.55,1.0578004]
[1757025264331,0.7193858,848.4,847.51,1.0578004]
[1757025264531,0.7193858,848.42,847.52,1.0578004]
[1757025265032,0.7193858,848.42,847.53,1.0578004]
[1757025265226,0.79487548,848.41,847.55,1.0578004]
[1757025265428,0.7193858,848.4,847.55,1.0578004]
[1757025265831,0.7193858,848.41,847.55,1.0578004]
[1757025268133,0.7193858,848.41,847.54,1.0578004]
[1757025269731,0.7193858,848.41,847.24,0.20509798]
[1757025269732,0.7193858,848.41,847.48,1.0578004]
[1757025270030,0.7193858,848.46,847.48,1.0578004]
[1757025270432,0.7193858,848.47,847.48,1.0578004]
[1757025270736,1.51426128,848.47,847.48,1.0578004]
[1757025270935,0.7193858,848.46,847.48,1.0578004]
[1757025271338,0.7193858,848.47,847.48,1.0578004]
[1757025273434,0.7193858,848.47,847.47,1.0578004]
[1757025274238,1.51426128,848.47,847.49,1.0578004]
[1757025274437,0.7193858,848.46,847.49,1.0578004]
[1757025276137,1.51426128,848.46,847.49,1.0578004]
[1757025276333,0.7193858,848.45,847.49,1.0578004]
[1757025276840,0.71773011,848.45,847.49,1.0578004]
[1757025279440,0.71773011,848.46,847.49,1.0578004]
[1757025279640,0.79487548,848.39,847.59,1.0578004]
[1757025279939,0.71773011,848.38,847.59,1.0578004]
[1757025280336,0.71773011,848.38,847.58,1.0578004]
[1757025281339,0.71773011,848.38,847.57,1.0578004]
[1757025281639,0.71773011,848.39,847.57,1.0578004]
[1757025281840,0.71773011,848.39,847.53,1.0578004]
[1757025282036,0.71773011,848.42,847.47,1.0578004]
[1757025282341,0.71773011,848.46,847.47,1.0578004]
[1757025282538,0.71773011,848.46,847.48,1.0578004]
[1757025283637,0.71773011,848.46,847.47,1.0578004]
[1757025283841,0.71773011,848.47,847.47,1.0578004]
[1757025284336,1.51260559,848.47,847.47,1.0578004]
[1757025284541,0.71773011,848.46,847.47,1.0578004]
[1757025285743,0.7177242,848.46,847.47,1.0578004]
[1757025287144,0.7177242,848.46,847.48,1.0578004]
[1757025291545,1.51259968,848.46,847.48,1.0578004]
[1757025291745,0.7177242,848.45,847.49,1.0578004]
[1757025291949,0.79487548,848.41,847.56,1.0578004]
[1757025292150,0.7177242,848.4,847.56,1.0578004]
[1757025292349,1.51259968,848.4,847.56,1.0578004]
[1757025292550,0.7177242,848.39,847.56,1.0578004]
[1757025293149,0.7177242,848.39,847.57,1.0578004]
[1757025293446,0.79487548,848.38,847.59,1.0578004]
[1757025293645,0.7177242,848.37,847.59,1.0578004]
[1757025294748,0.7177242,848.37,847.56,1.0578004]
[1757025294953,0.7177242,848.39,847.56,1.0578004]
[1757025295350,0.7177242,848.39,847.57,1.0578004]
[1757025296150,1.51259968,848.39,847.57,1.0578004]
[1757025296350,0.7177242,848.38,847.57,1.0578004]
[1757025297351,1.51259968,848.38,847.58,1.0578004]
[1757025297552,0.7177242,848.37,847.58,1.0578004]
[1757025298248,0.7177242,848.37,847.59,1.0578004]
[1757025298752,0.7177242,848.37,847.58,1.0578004]
[1757025299254,0.7177242,848.37,847.59,1.0578004]
[1757025300454,0.7177242,848.37,847.58,1.0578004]
[1757025301255,0.7177242,848.37,847.59,1.0578004]
[1757025302260,1.51259968,848.37,847.59,1.0578004]
[1757025302459,0.7177242,848.36,847.59,1.0578004]
[1757025302960,1.51259968,848.36,847.59,1.0578004]
[1757025303161,0.7177242,848.35,847.48,1.0578004]
[1757025303460,0.7177242,848.44,847.48,1.0578004]
[1757025304661,1.51259968,848.44,847.48,1.0578004]
[1757025304858,0.79487548,848.42,847.48,1.0578004]
[1757025305158,0.7177242,848.41,847.48,1.0578004]
[1757025305961,0.79444227,848.42,847.48,1.0578004]
[1757025306163,1.51216647,848.41,847.49,1.0578004]
[1757025306363,0.7177242,848.4,847.49,1.0578004]
[1757025307064,0.7177242,848.4,847.5,1.0578004]
[1757025307363,1.51216647,848.4,847.5,1.0578004]
[1757025307562,0.7177242,848.39,847.5,1.0578004]
[1757025307962,1.51216647,848.4,847.49,1.0578004]
[1757025308164,1.51216647,848.39,847.5,1.0578004]
[1757025308359,0.7177242,848.38,847.5,1.0578004]
[1757025308563,0.7177242,848.38,847.49,1.0578004]
[1757025308760,0.7177242,848.39,847.44,1.0578004]
[1757025308963,0.79444227,848.39,847.39,1.0578004]
[1757025309165,1.51216647,848.38,847.4,1.0578004]
[1757025309365,0.7177242,848.37,847.4,1.0578004]
[1757025310162,1.51216647,848.37,847.41,1.0578004]
[1757025310365,0.7177242,848.36,847.41,1.0578004]
[1757025311067,1.51216647,848.36,847.42,1.0578004]
[1757025311264,0.7177242,848.35,847.42,1.0578004]
[1757025312569,0.7177242,848.35,847.38,1.0578004]
[1757025312768,0.7177242,848.38,847.38,1.0578004]
[1757025313067,1.51216647,848.37,847.4,1.0578004]
[1757025313267,1.51216647,848.36,847.41,1.0578004]
[1757025313468,0.7177242,848.35,847.36,1.0578004]
[1757025313668,0.7177242,848.39,847.34,1.0578004]
[1757025313866,0.7177242,848.4,847.34,1.0578004]
[1757025314063,0.7177242,848.4,847.33,1.0578004]
[1757025314263,0.79444227,848.2,847.55,1.0578004]
[1757025314468,0.7177242,848.19,847.48,1.0578004]
[1757025314668,0.7177242,848.19,847.49,1.0578004]
[1757025315164,0.7177242,848.19,847.48,1.0578004]
[1757025315368,0.7177242,848.2,847.48,1.0578004]
[1757025316269,0.7177242,848.2,847.47,1.0578004]
[1757025316470,0.79444227,848.29,847.39,1.0578004]
[1757025317168,0.79444227,848.3,847.38,1.0578004]
[1757025317664,0.71917927,848.29,847.38,1.0578004]
[1757025318068,0.79444227,848.3,847.38,1.0578004]
[1757025318271,0.79444227,848.3,847.37,1.0578004]
[1757025319273,0.71917533,848.29,847.37,1.0578004]
[1757025319568,0.71917533,848.3,847.37,1.0578004]
[1757025321268,0.71917533,848.3,847.35,1.0578004]
[1757025321467,0.79444227,848.28,847.3,1.0578004]
[1757025321669,0.79444227,848.22,847.36,1.0578004]
[1757025321872,0.71917533,848.21,847.36,1.0578004]
[1757025322269,0.71917533,848.22,847.34,1.0578004]
[1757025322568,0.79444227,848.17,847.35,1.0578004]
[1757025322773,0.71917533,848.16,847.35,1.0578004]
[1757025323573,0.71917533,848.17,847.35,1.0578004]
[1757025323969,0.71875841,848.17,847.35,1.0578004]
[1757025324168,0.71875841,848.17,847.34,1.0578004]
[1757025324369,0.71875841,848.18,847.34,1.0578004]
[1757025324770,0.20521469,848.06,847.34,1.0578004]
[1757025325068,0.20521469,848.06,847.31,1.0578004]
[1757025325670,0.20521469,848.06,847.36,1.0578004]
[1757025325874,0.20521469,848.06,847.37,1.0578004]
[1757025326073,0.20521469,848.06,847.07,0.20521469]
[1757025326074,0.20521469,848.06,847.38,1.0578004]
[1757025326273,0.20521469,848.06,847.29,1.0578004]
[1757025327271,0.20521469,848.06,847.07,0.20521469]
[1757025327272,0.20521469,848.06,847.36,1.0578004]
[1757025327675,0.20521469,848.06,847.34,1.0578004]
[1757025328673,0.9239731,848.06,847.34,1.0578004]
[1757025328877,0.71875841,848.05,847.34,1.0578004]
[1757025329278,0.71875841,848.05,847.33,1.0578004]
[1757025329879,0.20521469,848.06,847.33,1.0578004]
[1757025330279,0.20521469,848.06,847.32,1.0578004]
[1757025330977,0.20521469,848.06,847.26,1.0578004]
[1757025331176,0.20521469,848.06,847.25,1.0578004]
[1757025331375,0.9239731,848.06,847.24,1.0578004]
[1757025331575,0.71875841,848.05,847.28,1.0578004]
[1757025331776,0.71875841,848.05,847.27,1.0578004]
[1757025332180,0.20521469,848.06,847.27,1.0578004]
[1757025332378,0.20521469,848.06,847.07,1.26301509]
[1757025332575,0.20521469,848.06,847.1,1.0578004]
[1757025333078,0.20521469,848.06,847.09,1.0578004]
[1757025334179,0.20521469,848.06,847.08,1.0578004]
[1757025334782,0.20521469,848.06,847.09,1.0578004]
[1757025335284,0.20521469,848.06,847.08,1.0578004]
[1757025336084,0.20521469,848.06,847.07,1.26301509]
[1757025337082,0.20521469,848.06,847.07,1.0578004]
[1757025337282,0.20521469,848.06,847.11,1.0578004]
[1757025337586,0.20521469,848.06,847.17,1.0578004]
[1757025338185,0.20521469,848.06,847.15,1.0578004]
[1757025340187,0.20521469,848.06,847.14,1.0578004]
[1757025342182,0.20521469,848.06,847.13,1.0578004]
[1757025344089,0.20521469,848.06,846.96,0.20524858]
[1757025353798,0.20521469,848.06,847.03,1.0578004]
[1757025354198,0.20521469,848.06,847.04,1.0578004]
[1757025357198,0.20521469,848.06,847.05,1.0578004]
[1757025358110,0.20521469,848.06,847.08,1.0578004]
[1757025358604,0.20521469,848.06,847.07,1.0578004]
[1757025359510,0.20521469,848.06,847.09,1.0578004]
[1757025361712,0.20521469,848.06,847.08,1.0578004]
[1757025362213,0.20521469,848.06,847.09,1.0578004]
[1757025362611,0.20521469,848.06,847.06,1.0578004]
[1757025364113,0.20521469,848.06,847.07,1.0578004]
[1757025366015,0.20521469,848.06,847.06,1.0578004]
[1757025367116,0.20521469,848.06,847.07,1.0578004]
[1757025367317,0.20521469,848.06,847.13,1.0578004]
[1757025368112,0.20521469,848.06,847.14,1.0578004]
[1757025368713,0.20521469,848.06,847.15,1.0578004]
[1757025370417,0.20521469,848.06,847.16,1.0578004]
[1757025371119,0.20521469,848.06,847.17,1.0578004]
[1757025372219,0.99965696,848.06,847.18,1.0578004]
[1757025372619,0.79444227,848.02,847.22,1.0578004]
[1757025373217,0.79444227,848.02,847.23,1.0578004]
[1757025374320,0.79444227,848.01,847.24,1.0578004]
[1757025375218,0.79444227,848.01,847.25,1.0578004]
[1757025376123,0.79444227,848.0,847.25,1.0578004]
[1757025377119,0.79444227,848.0,847.26,1.0578004]
[1757025377722,0.79444227,848.01,847.27,1.0578004]
[1757025378222,0.79444227,848.0,847.28,1.0578004]
[1757025379318,0.79444227,848.0,847.29,1.0578004]
[1757025380221,0.79444227,847.99,847.29,1.0578004]
[1757025381223,0.79444227,847.98,847.3,1.0578004]
[1757025382324,0.79444227,847.97,847.31,1.0578004]
[1757025382928,0.79444227,848.01,847.26,1.0578004]
[1757025384124,0.79444227,848.0,847.27,1.0578004]
[1757025386230,0.79444227,847.99,847.27,1.0578004]
[1757025387129,0.79444227,847.99,847.28,1.0578004]
[1757025388134,0.79444227,847.98,847.29,1.0578004]
[1757025390233,0.20521469,848.06,846.96,0.20524858]
[1757025390234,0.79444227,847.97,847.3,1.0578004]
[1757025391633,0.79444227,847.97,847.31,1.0578004]
[1757025392134,0.79444227,847.96,847.31,1.0578004]
[1757025392935,0.79444227,847.93,847.35,1.0578004]
[1757025395735,0.79444227,847.92,847.36,1.0578004]
[1757025397341,1.26476939,848.06,847.36,1.0578004]
[1757025397640,1.26476939,848.06,847.36,1.06119854]
[1757025397641,0.79596398,847.92,847.36,1.06119854]
[1757025402237,0.79596398,847.92,847.37,1.06119854]
[1757025402438,0.79596398,847.92,847.36,1.06119854]
[1757025404142,0.79596398,847.93,847.35,1.06119854]
[1757025406640,0.79596398,847.97,847.3,1.06119854]
[1757025406940,0.79596398,847.87,847.29,1.06119854]
[1757025407143,0.79596398,847.91,847.22,1.06119854]
[1757025407340,0.79596398,847.9,847.2,1.06119854]
[1757025407538,0.79596398,847.91,847.19,1.06119854]
[1757025407742,0.79596398,847.9,847.15,1.06119854]
[1757025408042,0.79596398,847.89,847.13,1.06119854]
[1757025408244,0.79596398,847.9,847.12,1.06119854]
[1757025409343,0.79596398,847.91,847.12,1.06119854]
[1757025410148,0.79596398,847.91,847.11,1.06119854]
[1757025411246,0.79596398,847.92,847.1,1.06119854]
[1757025413245,0.79596398,847.93,847.09,1.06119854]
[1757025413644,0.20521469,848.06,847.09,1.06119854]
[1757025413849,0.79516068,847.93,847.09,1.06119854]
[1757025416351,0.79516068,847.94,847.08,1.06119854]
[1757025416849,0.79516068,847.94,847.09,1.06119854]
[1757025417054,0.79516068,847.91,847.12,1.06119854]
[1757025417453,0.79516068,847.9,847.13,1.06119854]
[1757025417649,0.79516068,847.86,847.19,1.06119854]
[1757025417948,0.79516068,847.86,846.87,0.20527159]
[1757025417949,0.79516068,847.88,847.16,1.06119854]
[1757025424066,0.79516068,847.89,847.14,1.06119854]
[1757025424361,0.79516068,847.9,847.13,1.06119854]
[1757025424563,0.79516068,847.9,846.87,0.20527159]
[1757025424564,0.79516068,847.93,847.08,1.06119854]
[1757025424764,0.79516068,847.93,847.07,1.06119854]
[1757025425259,0.79516068,847.94,847.07,1.06119854]
[1757025425560,0.79516068,847.99,846.97,1.06119854]
[1757025425761,0.79516068,847.92,846.91,1.06119854]
[1757025426265,0.79516068,847.93,846.9,1.06119854]
[1757025426664,0.79516068,847.93,846.91,1.06119854]
[1757025426864,0.79516068,847.89,846.96,1.06119854]
[1757025427165,0.79516068,847.89,846.95,1.06119854]
[1757025427364,0.79516068,847.9,846.95,1.06119854]
[1757025428366,0.79516068,847.9,846.94,1.06119854]
[1757025429168,0.79516068,847.85,846.97,1.06119854]
[1757025429368,0.79516068,847.86,846.97,1.06119854]
[1757025429768,0.79516068,847.86,846.96,1.06119854]
[1757025429968,0.20521469,848.06,847.05,1.06119854]
[1757025429969,0.79516068,847.79,847.05,1.06119854]
[1757025431266,0.79516068,847.8,847.04,1.06119854]
[1757025433269,0.20521469,848.06,847.03,1.06119854]
[1757025433270,0.79516068,847.81,847.03,1.06119854]
[1757025436274,0.79516068,847.82,847.02,1.06119854]
[1757025439275,0.79516068,847.83,847.0,1.06119854]
[1757025439477,0.79516068,847.8,846.97,1.06119854]
[1757025439776,0.79516068,847.8,846.96,1.06119854]
[1757025440275,0.79516068,847.81,846.96,1.06119854]
[1757025440470,0.79516068,847.8,846.96,1.06119854]
[1757025440673,0.79516068,847.78,846.96,1.06119854]
[1757025440890,0.79516068,847.78,846.94,1.06119854]
[1757025444278,0.79516068,847.79,846.93,1.06119854]
[1757025446580,0.79516068,847.8,846.92,1.06119854]
[1757025446875,0.79516068,847.84,846.87,1.06119854]
[1757025450483,1.06128531,848.01,846.87,1.06119854]
[1757025450484,0.79516068,847.83,846.87,1.06119854]
[1757025450682,0.79516068,847.83,846.88,1.06119854]
[1757025452485,0.79516068,847.84,846.86,1.06119854]
[1757025452685,0.79516068,847.8,846.82,1.06119854]
[1757025453886,0.79516068,847.81,846.82,1.06119854]
[1757025454187,0.79516068,847.8,846.82,1.06119854]
[1757025454387,0.79516068,847.81,846.82,1.06119854]
[1757025456391,0.79516068,847.8,846.82,1.06119854]
[1757025456687,0.79516068,847.77,846.86,1.06119854]
[1757025458790,0.79516068,847.77,846.87,1.06119854]
[1757025459288,0.79516068,847.76,846.87,1.06119854]
[1757025462298,0.79516068,847.74,846.9,1.06119854]
[1757025463196,0.79516068,847.73,846.91,1.06119854]
[1757025463394,0.79516068,847.74,846.9,1.06119854]
[1757025463597,0.79516068,847.73,846.9,1.06119854]
[1757025464295,0.79516068,847.73,846.91,1.06119854]
[1757025465198,0.79516068,847.72,846.92,1.06119854]
[1757025467201,0.79516068,847.71,846.93,1.06119854]
[1757025467601,0.79516068,847.72,846.92,1.06119854]
[1757025467801,0.79516068,847.71,846.93,1.06119854]
[1757025468699,0.79516068,847.7,846.94,1.06119854]
[1757025469304,0.20531761,847.64,846.94,1.06119854]
[1757025471401,0.20531761,847.64,846.85,1.06119854]
[1757025473205,0.20531761,847.64,846.86,1.06119854]
[1757025473508,0.20531761,847.64,846.82,1.06119854]
[1757025473804,0.20531761,847.64,846.81,1.06119854]
[1757025474301,0.20531761,847.64,846.8,1.06119854]
[1757025475306,0.79380986,847.82,846.82,1.06119854]
[1757025475605,0.20530731,847.74,846.82,1.06119854]
[1757025478405,0.20530731,847.74,846.83,1.06119854]
[1757025481209,0.20530731,847.74,846.86,1.06119854]
[1757025481608,0.20530731,847.74,846.87,1.06119854]
[1757025483617,0.79380986,847.73,846.93,1.06119854]
[1757025484116,0.79380986,847.71,846.95,1.06119854]
[1757025484415,0.79380986,847.7,846.96,1.06119854]
[1757025484618,0.79380986,847.71,846.94,1.06119854]
[1757025485318,0.79380986,847.7,846.95,1.06119854]
[1757025487221,0.79380986,847.7,846.96,1.06119854]
[1757025487921,0.20530731,847.74,846.87,1.06119854]
[1757025489317,0.20530731,847.74,846.88,1.06119854]
[1757025492524,0.20530731,847.74,846.92,1.06119854]
[1757025493725,0.79380986,847.84,846.94,1.06119854]
[1757025493925,0.79380986,847.83,846.94,1.06119854]
[1757025495324,0.79380986,847.83,846.95,1.06119854]
[1757025497827,0.79380986,847.73,847.07,1.06119854]
[1757025500125,0.79380986,847.74,847.06,1.06119854]
[1757025500428,0.79380986,847.74,847.07,1.06119854]
[1757025501226,0.79380986,847.75,847.07,1.06119854]
[1757025502331,0.79380986,847.74,847.08,1.06119854]
[1757025502631,0.79380986,847.77,847.06,1.06119854]
[1757025503528,0.79380986,847.75,847.09,1.06119854]
[1757025504133,0.79380986,847.74,847.09,1.06119854]
[1757025504431,0.79380986,847.75,847.08,1.06119854]
[1757025506234,0.79380986,847.74,847.07,1.06119854]
[1757025512241,0.79380986,847.74,847.08,1.06119854]
[1757025512443,0.79380986,847.73,847.08,1.06119854]
[1757025516342,0.79380986,847.79,847.01,1.06119854]
[1757025526250,0.79380986,847.73,847.09,1.06119854]
[1757025527353,0.79380986,847.73,847.08,1.06119854]
[1757025527553,0.79380986,847.74,847.07,1.06119854]
[1757025530655,0.79380986,847.73,847.08,1.06119854]
[1757025531458,0.79380986,847.77,847.03,1.06119854]
[1757025537261,0.79380986,847.76,847.04,1.06119854]
[1757025538760,0.79380986,847.75,847.05,1.06119854]
[1757025539259,0.20528491,847.84,847.06,1.06119854]
[1757025539260,0.79380986,847.76,847.06,1.06119854]
[1757025539661,0.79380986,847.77,847.06,1.06119854]
[1757025541261,0.79380986,847.74,847.1,1.06119854]
[1757025541866,0.20528491,847.84,846.97,1.06119854]
[1757025542363,0.20528491,847.84,846.96,1.06119854]
[1757025544365,0.20528491,847.84,846.95,1.06119854]
[1757025545371,0.20528491,847.84,846.94,1.06119854]
[1757025546273,0.20528491,847.84,847.02,1.06119854]
[1757025546672,0.20528491,847.84,847.01,1.06119854]
[1757025547173,0.20528491,847.84,847.02,1.06119854]
[1757025547373,0.20528491,847.84,847.01,1.06119854]
[1757025548974,0.20528491,847.84,847.0,1.06119854]
[1757025549577,0.20528491,847.84,847.01,1.06119854]
[1757025550879,0.79380986,848.09,847.01,1.06119854]
[1757025551079,0.20524979,847.97,847.01,1.06119854]
[1757025551877,0.20524979,847.97,847.12,1.06119854]
[1757025553781,0.20524979,847.97,847.01,1.06119854]
[1757025553981,0.20524979,847.97,846.99,1.06119854]
[1757025554281,0.20524979,847.97,846.98,1.06119854]
[1757025554978,0.20524979,847.97,846.99,1.06119854]
[1757025555277,0.20524979,847.97,846.98,1.06119854]
[1757025555779,0.20524979,847.97,846.99,1.06119854]
[1757025556375,0.20524979,847.97,846.98,1.06119854]
[1757025556580,0.20524979,847.97,846.99,1.06119854]
[1757025557579,0.20524979,847.97,846.98,1.06119854]
[1757025558182,0.20524979,847.97,846.96,1.06119854]
[1757025558482,0.20524979,847.97,846.88,1.06119854]
[1757025563389,0.99905965,847.97,846.97,1.06119854]